Cogmind - Beta 17.1 @@@ ROGUE MODE // 2026.09.06 @ 02:33:54 Player: 4R-ZE3 Result: Destroyed by S-10 Pest with Light Assault Rifle Performance ------------- Evolutions (0) 0 Regions Visited (2) 400 Robots Destroyed (23) 115 Value Destroyed (648) 648 Prototype IDs (0) 0 Alien Tech Used (0) 0 Bonus (0) 0 TOTAL SCORE: 1163 Bonus ------- None Cogmind --------- Core Integrity 0/250 Matter 296/300 Energy 200/200 System Corruption 0% Temperature Cool (0) Movement Treading (240) Ox1 Location -10/Subcaves Parts ------- > --- POWER (1) -------- Subdweller Power Source > --- PROPULSION (2) --- Light Treads Compact Wheel > --- UTILITY (2) ------ Scrap Shield > --- WEAPON (2) ------- Subdweller Machine Gun Subdweller Machine Gun > --- INVENTORY (5) ---- Improved Heat Sink Large Storage Unit Subdweller Laser Battle Rifle Multitool Peak State ------------ > --- POWER ------------ Light Ion Engine > --- PROPULSION ------- Light Treads Wheel > --- UTILITY ---------- Improved Heat Sink Large Storage Unit > --- WEAPON ----------- Subdweller Machine Gun Subdweller Machine Gun > --- INVENTORY -------- Subdweller Power Source Aluminum Leg Aluminum Leg Compact Wheel Heat Sink Disposable Heat Sink Small Storage Unit Core Shielding EM Pulse Gun Small Laser Small Laser Subdweller Laser Battle Rifle Grenade Launcher Multitool [Rating: 13] Favorites ----------- Power Ion Engine Engine Ion Engine Propulsion Light Treads Treads Light Treads Wheel Wheel Utility Improved Heat Sink Device Improved Heat Sink Storage Large Storage Unit Protection Core Shielding Weapon Particle Gun Energy Gun Particle Gun Ballistic Gun Subdweller Machine Gun Build | -11 -10 -10 ------- Run | Yrd Mat Sub Slots Evolved . | . . . Power . | . . . Propulsion . | . . . Utility . | . . . Weapon . | . . . Parts Attached 28 | 6 12 10 Power 5 | 1 2 2 Engine 5 | 1 2 2 Core . | . . . Reactor . | . . . Propulsion 5 | 2 2 1 Treads 3 | 2 1 . Leg . | . . . Wheel 2 | . 1 1 Hover . | . . . Flight . | . . . Utility 7 | 1 5 1 Device 2 | . 2 . Storage 3 | 1 2 . Processor . | . . . Hackware . | . . . Protection 2 | . 1 1 Artifact . | . . . Weapon 11 | 2 3 6 Energy Gun 5 | 1 3 1 Energy Cannon . | . . . Ballistic Gun 6 | 1 . 5 Ballistic Cannon . | . . . Launcher . | . . . Special Weapon . | . . . Impact Weapon . | . . . Slashing Weapon . | . . . Piercing Weapon . | . . . Special Melee Weapon . | . . . Unidentified Prototypes . | . . . Parts Lost 10 | . 5 5 Power 3 | . 1 2 Propulsion 3 | . 2 1 Utility . | . . . Weapon 4 | . 2 2 Highest Loss Streak 3 | . 3 2 To Critical Strikes . | . . . Average Backups 10 | 2 6 14 Power 1 | . 1 1 Propulsion 2 | 1 1 2 Utility 2 | . 1 3 Weapon 3 | . 1 5 Tool/Special . | . . . Unused Backups 8 | . . 8 Power . | . . . Propulsion 2 | . . 2 Utility 1 | . . 1 Weapon 4 | . . 4 Tool/Special 1 | . . 1 Average Slot Usage (%) 95 | . 91 97 Engine 13 | . 14 13 Treads 14 | . 16 14 Wheel 10 | . 6 13 Device 10 | . 7 12 Storage 13 | . 14 13 Protection 2 | . 4 1 Energy Gun 20 | . 20 19 Ballistic Gun 7 | . 7 7 Peak Build Rating 13 | 6 11 13 Average Rating 9 | 5 7 11 On Entrance 5 | . 6 11 Avg Prop Armor Cover (%) 13 | . 13 13 Naked Turns . | . . . Heaviest Build 34 | 11 30 34 Greatest Support 40 | 40 40 16 Greatest Overweight (x) 3 | . 2 3 Average Overweight (x) 1 | . . 2 Largest Inventory Capacity 15 | 8 15 15 Average Capacity 11 | 7 9 14 Most Carried 15 | 4 14 15 Average Carried 10 | 2 6 14 Final Capacity 15 | 8 15 5 Final Carried 14 | 4 14 5 Class Distribution -------------------- 54% | Scavenger-Mutant 40% | Mutant 5% | Subdweller-Mutant Dominant Class ---------------- Scavenger-Mutant | -10/Materials Scavenger-Mutant | -10/Subcaves Resources | -11 -10 -10 ----------- Run | Yrd Mat Sub Matter Collected 597 | 204 198 195 Remotely . | . . . Salvage Created 844 | . 490 354 Parts 55 | . 32 23 Haulers Intercepted 1 | . 1 . Recyclers Shooed . | . . . Parts Field Recycled . | . . . Retrieved Matter . | . . . Parts Self-Destructed 10 | . . 10 Prevented . | . . . Parts Restored . | . . . Kills | -11 -10 -10 ------- Run | Yrd Mat Sub Combat Hostiles Destroyed 21 | . 13 8 Guns 21 | . 13 8 Classes Destroyed 6 | . 4 2 Worker 1 | . 1 . Hauler 1 | . 1 . Swarmer 6 | . 6 . Grunt 9 | . 7 2 Artisan 1 | . . 1 Subdweller 6 | . . 6 Best Kill Streak 7 | . 7 2 Combat Bots Only 7 | . 7 2 Max Kills in Single Turn 1 | . 1 1 Gunslinging . | . . . Exploded . | . . . Melee . | . . . Uniques/NPCs Destroyed . | . . . Combat | -11 -10 -10 -------- Run | Yrd Mat Sub Hostile Shots Fired 131 | . 81 50 Missed 36 | . 25 11 Hits 95 | . 56 39 Projectile 95 | . 56 39 Critical Strikes 3 | . 3 . Damage Taken 1371 | . 650 721 Core 251 | . 77 174 Absorbed by Shields . | . . . Redirected to Shielding 14 | . 10 4 Core Remaining (%) 100 | 100 . . Volleys Fired 89 | . 60 29 Largest 2 | . 2 2 Hottest 125 | . 105 125 Shots Fired 173 | . 118 55 Gun 173 | . 118 55 Cannon . | . . . Launcher . | . . . Special . | . . . Kinetic 81 | . 47 34 Thermal 71 | . 50 21 Explosive . | . . . Electromagnetic 21 | . 21 . Robot Hit Streak 10 | . 10 10 Robot Miss Streak 4 | . 4 2 Penetration Max . | . . . Secondary Targets 3 | . 2 1 Max Gunslinging Chain 1 | . 1 1 Shots Hit Robots 113 | . 71 42 Core Hits 41 | . 25 16 Critical Kills . | . . . Critical Parts Destroyed 1 | . 1 . Critical Strikes 3 | . 1 2 Burn 1 | . . 1 Destroy 2 | . 1 1 Melee Attacks . | . . . Impact . | . . . Slashing . | . . . Piercing . | . . . Sneak Attacks . | . . . Combat Hostiles . | . . . Follow-up Attacks . | . . . Damage Inflicted 1579 | . 789 790 Guns 1579 | . 789 790 Cannons . | . . . Explosions . | . . . Melee . | . . . Ramming . | . . . Kinetic 672 | . 200 472 Thermal 663 | . 345 318 Explosive . | . . . Electromagnetic 244 | . 244 . Impact . | . . . Slashing . | . . . Piercing . | . . . Highest Corruption . | . . . Average Corruption . | . . . Corruption Purged . | . . . Corruption Blocked . | . . . Overload Shots . | . . . Overflow Damage . | . . . Projectiles . | . . . Explosions . | . . . Melee . | . . . Knockbacks . | . . . Impact . | . . . Kinetic . | . . . Secondary . | . . . Self-Inflicted Damage . | . . . Shots . | . . . Rammed . | . . . Targets Rammed . | . . . Kicked . | . . . Crushed . | . . . Highest Temperature 251 | . 251 . Average Temperature 76 | . 76 . Received Heat Transfer 438 | . 360 78 Effects 2 | . 2 . Interference 2 | . 2 . Siege Activations . | . . . Martial Activations . | . . . Shielding Activations . | . . . Robots Disrupted . | . . . Combat Hostiles . | . . . Robots Corrupted . | . . . Combat Hostiles . | . . . Parts Fried . | . . . Impact Corruptions . | . . . Robots Melted . | . . . Combat Hostiles . | . . . Parts Melted . | . . . Heat Transferred 1455 | . 810 645 Parts Sabotaged . | . . . Parts Stolen . | . . . Parts Stripped . | . . . Power Chain Reactions . | . . . Alert | -11 -10 -10 ------- Run | Yrd Mat Sub Maximum Alert Level 1 | . 1 . Low Security (%) 44 | 100 36 . Level 1 56 | . 63 . Level 2 . | . . . Level 3 . | . . . Level 4 . | . . . Level 5 . | . . . High Security . | . . . Max Security . | . . . Peak Influence 340 | . 340 . Initial . | . . . Average 170 | . 195 . Influence Increases 623 | . 543 80 Destroy 0b10 Robot/C 300 | . 260 40 Destroy 0b10 Robot/NC 10 | . 10 . Destroy Leader 62 | . 52 10 Successful Hack 11 | . 11 . Select Force Hacks 60 | . 60 . Lose Combat Pursuer 180 | . 150 30 Influence Decreases 593 | . 318 275 Entered New Map 109 | . . 109 Time Decay 416 | . 268 148 Lost Part 68 | . 50 18 Squads Dispatched 3 | . 3 . Investigation 2 | . 2 . Extermination . | . . . Reinforcement 1 | . 1 . Assault . | . . . Garrison . | . . . Intercept . | . . . Searches Triggered . | . . . Construction Impeded . | . . . Haulers Reinforced . | . . . Active Scanning Responses . | . . . Cargo Convoy Interrupts . | . . . Stealth | -11 -10 -10 --------- Run | Yrd Mat Sub Distress Signals 1 | . 1 . Communications Jammed . | . . . Distress Signals . | . . . Times Spotted 38 | . 28 10 Peak Tracking Total 5 | . 5 2 Tactical Retreats 7 | . 6 1 Traps | -11 -10 -10 ------- Run | Yrd Mat Sub Traps Triggered . | . . . Indirectly . | . . . Trap Hack Attempts . | . . . Triggered . | . . . Disarmed . | . . . Reprogrammed . | . . . Reused . | . . . Traps Extracted . | . . . Installed . | . . . Triggered . | . . . Machines | -11 -10 -10 ---------- Run | Yrd Mat Sub Machines Disabled 1 | . 1 . Max in Single Turn 1 | . 1 . Machines Repaired . | . . . Machines Dismantled . | . . . Machines Sabotaged . | . . . Overloaded Fab Kills . | . . . Hacking | -11 -10 -10 --------- Run | Yrd Mat Sub Machines Accessed 4 | . 3 1 Terminals 1 | . 1 . Fabricators . | . . . Repair Stations . | . . . Recycling Units 2 | . 2 . Scanalyzers . | . . . Garrison Access . | . . . Total Hacks 13 | . 8 5 Successful 9 | . 4 5 Failed 4 | . 4 . Catastrophic . | . . . Database Lockouts . | . . . Manual 8 | . 8 . Terminals 6 | . 6 . Fabricators . | . . . Repair Stations . | . . . Recycling Units 2 | . 2 . Scanalyzers . | . . . Garrison Access . | . . . Terminal Hacks 6 | . 1 5 Record 5 | . . 5 Robot Analysis 1 | . 1 . Fabricator Hacks . | . . . Repair Station Hacks . | . . . Recycling Unit Hacks . | . . . Scanalyzer . | . . . Garrison Access Hacks . | . . . Unauthorized Hacks 3 | . 3 . Terminals 1 | . 1 . Botnet 1 | . 1 . Fabricators . | . . . Repair Stations . | . . . Recycling Units 2 | . 2 . Tunnel 2 | . 2 . Scanalyzers . | . . . Garrison Access . | . . . Data Cores Recovered . | . . . Used . | . . . Hacking Detections 1 | . 1 . Full Trace Events . | . . . Feedback Events . | . . . Feedback Blocked . | . . . Robot Schematics Acquired . | . . . Robots Built . | . . . Authchips . | . . . Time . | . . . Total Robot Build Rating . | . . . Part Schematics Acquired . | . . . Parts Built . | . . . Authchips . | . . . Time . | . . . Total Part Build Rating . | . . . Part Studies Acquired . | . . . Parts Repaired . | . . . Time . | . . . Parts Recycled . | . . . Recycled Matter . | . . . Retrieved Matter . | . . . Retrieved Components . | . . . Parts Scanalyzed . | . . . Part Schematics Acquired . | . . . Parts Damaged . | . . . Bothacking | -11 -10 -10 ------------ Run | Yrd Mat Sub Used RIF Installer . | . . . Robots Hacked . | . . . Non-combat . | . . . Combat . | . . . Robot Hacks Applied . | . . . Relay Couplers Released . | . . . Fabnet Peak Effective % . | . . . Robots Rewired . | . . . Allies Hacked . | . . . Hacks Repelled . | . . . Allies | -11 -10 -10 -------- Run | Yrd Mat Sub Total Allies . | . . . Largest Group . | . . . Highest-Rated Group . | . . . Highest-Rated Ally . | . . . Total Orders . | . . . Ally Attacks . | . . . Total Damage . | . . . Kills . | . . . Allies Corrupted . | . . . Allies Melted . | . . . Intel | -11 -10 -10 ------- Run | Yrd Mat Sub Active Infowar (turns) . | . . . Robot Analysis Total 1 | . 1 . Derelict Logs Recovered 1 | . . 1 Drone Launches . | . . . Drone Recoveries . | . . . Exploration | -11 -10 -10 ------------- Run | Yrd Mat Sub Turns Passed 1653 | 96 679 878 Spaces Moved 1059 | 54 394 611 Core 2 | 2 . . Treads 171 | 52 119 . Legs . | . . . Wheels 886 | . 275 611 Hover . | . . . Flight . | . . . Fastest Speed 50 | 50 95 100 Average Speed 121 | 155 117 121 Slowest Speed 160 | 160 160 130 Overloaded Moves . | . . . Propulsion Burnouts . | . . . Robots Hopped . | . . . Potential Cave-ins . | . . . Cave-ins Triggered . | . . . Exploration Rate (%) 35 | 3 69 33 Regions Visited 2 Branch Regions 1 Pre-discovered Areas 2 | . 2 . Known Exits Taken . | . . . Unknown Exits Taken 2 | 1 1 . Scrap Searched . | . . . Spaces Dug . | . . . Terrain Destroyed . | . . . Melee . | . . . Projectile . | . . . AOE . | . . . Terrain Rammed . | . . . Walls Destroyed . | . . . Machines Disabled . | . . . Actions | -11 -10 -10 --------- Run | Yrd Mat Sub Total 1262 | 63 499 700 Wait 44 | . 23 21 Move 1057 | 53 393 611 Hop . | . . . Pick Up 18 | 4 9 5 Fast Attach 14 | 6 3 5 Attach 8 | . 4 4 Detach 5 | . 1 4 Swap 9 | . 6 3 Drop 16 | . . 16 Fire 89 | . 60 29 Melee . | . . . Ram . | . . . Kick . | . . . Crush . | . . . Escape Stasis . | . . . Rewire . | . . . Trap . | . . . Miscellaneous 2 | . . 2 Route ------- -11/Scrapyard -10/Materials (discovered 4 exits: [*Mat x2] / [*Min] / *Sub) -10/Subcaves History --------- Turn | Location | Event 60 | -11/Scrapyard | Discovered new exit (range 15) 97 | -11/Scrapyard | Entered Materials 303 | -10/Materials | Build established: Mutant 379 | -10/Materials | Destroyed 7 combat bots 481 | -10/Materials | Lost 3 parts (2n1w) 483 | -10/Materials | Discovered new exit (range 14) 553 | -10/Materials | Discovered new exit (range 9) 643 | -10/Materials | Discovered new exit (range 15) 741 | -10/Materials | Build established: Scavenger-Mutant 767 | -10/Materials | Discovered new exit (range 9) 776 | -10/Materials | Entered Subcaves 777 | -10/Subcaves | Approached by a straggling Scientist 782 | -10/Subcaves | Learned Materials trap positions 846 | -10/Subcaves | Ambushed by angry Subdweller bent on revenge 1009 | -10/Subcaves | Visited Clippyterm 1013 | -10/Subcaves | Learned 40 Factory zone layouts 1013 | -10/Subcaves | Learned Factory stockpile data 1329 | -10/Subcaves | Core integrity fell below 50% 1442 | -10/Subcaves | Shifting Twisted Machinery released Sub. Machine Gun 1446 | -10/Subcaves | Shifting Twisted Machinery released Battle Rifle 1510 | -10/Subcaves | Disturbed a concealed Subdweller 1514 | -10/Subcaves | Core integrity fell below 20% 1654 | -10/Subcaves | Destroyed by S-10 Pest with Light Assault Rifle Last Messages --------------- 01593_ Acquired 46 matter. 01594_ Acquired 18 matter. 01598_ Dropped Core Shielding. 01599_ Dropped Aluminum Leg. 01600_ Dropped Heat Sink. 01600_ Dropped Sml. Storage Unit. 01601_ Dropped EM Pulse Gun. 01601_ Dropped Disposable Heat Sink. 01602_ Dropped Sml. Laser. 01602_ Dropped Grenade Launcher. 01603_ Dropped Battle Rifle. 01607_ Acquired Scrap Shield. 01609_ Scrap Shield Fragment affixed to Scrap Shield (+48). [Achievement: Survival Of The Most Covered] 01610_ Acquired 10 matter. 01612_ Subatomizers dissect the Disposable Heat Sink. 01615_ Scrap Shield Fragment affixed to Scrap Shield (+20). Map ----- +----------------------------------------------------+ | ?????????????????????????????????????????????????? | | ?????????????????????????????????????????????????? | | ?????????????????????????????????????????????????? | | ?????????????????????????????????????????????????? | | ?????????????????????????????????????????????????? | | ?????????????????????????????????????????????????? | | ?????????????????????????????????????????????????? | | ?????????????????????????????????????????????????? | | ?????????????????????????????????????????????????? | | ?????????????????????????????????????????????????? | | ?????????????????????????????????????????????????? | | ?????????????????????????????????????????????????? | | ?????????????????????????????????????????????????? | | ?????????????????????????????????????????????????? | | ?????????????????????????????????????????????????? | | ?????????????????????????????????????????????????? | | ??????????????????????????????????"??????????????? | | ?????????????????????????????????"???????????????? | | ?????????????????????????######? ????????????????? | | ?????????????????????????? # ?????????????????? | | ?????????????????????????## ??????????????????? | | ?????????????????????????#< ##??????????????????? | | ???????????????????????###< <###????????????????? | | ????????????????####?### s ### #??????????? | | ???????????????## ## s #?????????? | | ???????????????# @### ### #?????????? | | ???????????????## ##? ## #?????????? | | ????????????????## ### #??????????? | | ?????????????????### #???????????? | | ???????????????????### ????????? | | ###????????????????#### ### ????????? | | ="#???????????###### ## #?# % # ?????????? | | #&#?????####### ## # #?? #####?#????????? | | &%####### !! % * ##?? #??????????????? | | # ## [!!=! ####??? % % ??????????????? | | # [[=!# # #????? #?????????????? | | " ]## ### #????? ####?????????????? | | ### #"" #????? ????????????????? | | ## "" " #????? ?????????????????? | | %### " "" #?????????????????????????? | | #?### ## ##"##?????????????????????????? | | #???#### % ###??????????????????????????? | | #??????## #????????????????????????????? | | ##???????##### ????????????????????????????? | | #??##???????# ???????????????????????????? | | #### #??????? #??????????????????????????? | | # #???? % ######??????????????????????????? | | ## % #???????????????????????????????? | | % "???????????????????????????????? | | ????????????????????????????????? | +----------------------------------------------------+ Best States ------------- Heat Dissipation 39 Energy Generation 10 Energy Capacity 250 Matter Stores 300 Matter Capacity 300 Sight Range 16 Terrain Scan Density 10 Armor Coverage 800 Core Shielding 20 Evasion (%) 41 Recoil Reduction 2 Item Schematics ----------------- None Robot Schematics ------------------ None Fabricated ------------ Nothing Repaired ---------- Nothing Studied --------- None Alien Tech Used ----------------- None Achievements -------------- Survival Of The Most Covered Challenges ------------ None Game ------ Seed ClaymoresGreaterBoomstick Manual? 0 Play Time 00:11:14 Cumulative 338.6 hours Start 2026.09.06 @ 02:23:49 End 2026.09.06 @ 02:33:54 Sessions 1 Manual Loads 0 Difficulty Rogue Special Mode None Game No. 315 Rogue 261 Adventurer 54 Explorer 0 Win Type - Total 16 Types 11/1/1/1/0/0/0/1/0/1 Lore% 80 Gallery% 69 Achievement% 65 Wizard Run 0 Options --------- Layout 1 ASCII 0 Keyboard 0 Movement Mouse Keybinds 1 Fullscreen 2 Font 32/Tamsyn Map View 50x35 Zoom Use 0% Tactical HUD 1 Map Filters NONE Filters NONE Steam 1 RUN: f5a8a08e-f40a-410a-8f13-4ca6a4c7886a